fUST/lending_fUST_20260118
["ID","MTS","AMOUNT","RATE_DAILY","PERIOD"]
[402385896,1768669892268,-822.65,0.00017808,3]
[402385898,1768669892277,-500.0,0.00017808,3]
[402385900,1768669892287,-1860.69,0.00017808,3]
[402385903,1768669892297,-563.95,0.00017808,3]
[402385905,1768669892307,-1121.41,0.00017808,3]
[402385907,1768669892316,-681.26,0.00017808,3]
[402385909,1768669892325,-500.0,0.00017808,3]
[402385911,1768669892335,-470.6383794,0.00017808,3]
[402385913,1768669892344,-1574.77,0.00017808,3]
[402385915,1768669892354,-500.0,0.00017808,3]
[402385917,1768669892363,-710.07,0.00017808,3]
[402385919,1768669892372,-593.25,0.00017808,3]
[402385920,1768669892382,-819.68,0.00017808,3]
[402385922,1768669892391,-547.02,0.00017808,3]
[402385925,1768669892401,-541.55,0.00017808,3]
[402385927,1768669892411,-898.93,0.00017808,3]
[402385928,1768669892421,-500.0,0.00017808,3]
[402385931,1768669892431,-500.0,0.00017808,3]
[402385933,1768669892441,-500.0,0.00017808,3]
[402385935,1768669892452,-500.0,0.00017808,3]
[402385937,1768669892463,-514.7,0.00017808,3]
[402385938,1768669892473,-1717.69,0.00017808,3]
[402385940,1768669892483,-1181.35,0.00017808,3]
[402385943,1768669892493,-500.0,0.00017808,3]
[402385944,1768669892503,-500.0,0.00017808,3]
[402385947,1768669892512,-870.07,0.00017808,3]
[402385949,1768669892522,-1177.53,0.00017808,3]
[402385951,1768669892531,-500.0,0.00017808,3]
[402385953,1768669892541,-500.0,0.00017808,3]
[402385955,1768669892552,-1477.98,0.00017808,3]
[402385957,1768669892561,-548.99,0.00017808,3]
[402385959,1768669892573,-1364.59,0.00017808,3]
[402385961,1768669892583,-500.0,0.00017808,3]
[402385963,1768669892592,-614.82090661,0.00017808,3]
[402385965,1768669892602,-1272.0,0.00017808,3]
[402385967,1768669892612,-500.0,0.00017808,3]
[402385969,1768669892622,-500.0,0.00017808,3]
[402385971,1768669892632,-1023.93,0.00017808,3]
[402385973,1768669892642,-1022.84,0.00017808,3]
[402385975,1768669892654,-516.54,0.00017808,3]
[402385977,1768669892664,-3403.79,0.00017808,3]
[402385979,1768669892674,-770.4,0.00017808,3]
[402385980,1768669892683,-1414.69,0.00017808,3]
[402385982,1768669892692,-500.0,0.00017808,3]
[402385984,1768669892702,-500.0,0.00017808,3]
[402385987,1768669892713,-690.86,0.00017808,3]
[402385988,1768669892722,-743.92,0.00017808,3]
[402385990,1768669892731,-500.0,0.00017808,3]
[402385992,1768669892741,-1368.68,0.00017808,3]
[402385994,1768669892751,-692.37,0.00017808,3]
[402385996,1768669892761,-500.0,0.00017808,3]
[402385998,1768669892770,-437.89239693,0.00017808,3]
[402386000,1768669892780,-674.52,0.00017808,3]
[402386002,1768669892790,-547.26,0.00017808,3]
[402386004,1768669892799,-500.0,0.00017808,3]
[402386006,1768669892809,-590.26232333,0.00017808,3]
[402386008,1768669892818,-500.0,0.00017808,3]
[402386010,1768669892828,-500.0,0.00017808,3]
[402386013,1768669892839,-774.57,0.00017808,3]
[402386015,1768669892849,-1114.84,0.00017808,3]
[402386016,1768669892859,-500.0,0.00017808,3]
[402386019,1768669892869,-500.0,0.00017808,3]
[402386021,1768669892879,-500.0,0.00017808,3]
[402386023,1768669892889,-14376.21,0.00017808,3]
[402386024,1768669892899,-1568.81,0.00017808,3]
[402386026,1768669892909,-500.0,0.00017808,3]
[402386029,1768669892919,-1380.77,0.00017808,3]
[402386030,1768669892928,-500.0,0.00017808,3]
[402386033,1768669892938,-500.0,0.00017808,3]
[402386035,1768669892948,-680.81,0.00017808,3]
[402386036,1768669892959,-702.8,0.00017808,3]
[402386038,1768669892968,-558.44,0.00017808,3]
[402386041,1768669892978,-500.0,0.00017808,3]
[402386042,1768669892988,-1285.11,0.00017808,3]
[402386044,1768669892997,-1541.54,0.00017808,3]
[402386046,1768669893007,-885.92,0.00017808,3]
[402386048,1768669893018,-552.93,0.00017808,3]
[402386050,1768669893028,-500.0,0.00017808,3]
[402386052,1768669893038,-611.35197763,0.00017808,3]
[402386054,1768669893048,-500.0,0.00017808,3]
[402386056,1768669893058,-500.0,0.00017808,3]
[402386058,1768669893067,-539.86,0.00017808,3]
[402386060,1768669893077,-1422.11,0.00017808,3]
[402386062,1768669893087,-895.54,0.00017808,3]
[402386064,1768669893096,-1148.17,0.00017808,3]
[402386066,1768669893107,-581.61,0.00017808,3]
[402386068,1768669893116,-878.96,0.00017808,3]
[402386070,1768669893125,-2589.16,0.00017808,3]
[402386072,1768669893135,-500.0,0.00017808,3]
[402386074,1768669893145,-500.0,0.00017808,3]
[402386076,1768669893155,-500.0,0.00017808,3]
[402386078,1768669893164,-693.13,0.00017808,3]
[402386080,1768669893174,-1236.21,0.00017808,3]
[402386083,1768669893183,-632.1,0.00017808,3]
[402386085,1768669893193,-500.0,0.00017808,3]
[402386086,1768669893203,-500.0,0.00017808,3]
[402386088,1768669893212,-500.0,0.00017808,3]
[402386090,1768669893222,-1103.35,0.00017808,3]
[402386092,1768669893231,-1025.61,0.00017808,3]
[402386094,1768669893241,-500.0,0.00017808,3]
[402386096,1768669893250,-500.0,0.00017808,3]
[402386098,1768669893259,-500.0,0.00017808,3]
[402386100,1768669893268,-500.0,0.00017808,3]
[402386102,1768669893277,-500.0,0.00017808,3]
[402386104,1768669893286,-500.0,0.00017808,3]
[402386106,1768669893296,-379.25255787,0.00017808,3]
[402386108,1768669893305,-500.0,0.00017808,3]
[402386110,1768669893314,-500.0,0.00017808,3]
[402386112,1768669893324,-1530.35,0.00017808,3]
[402386114,1768669893333,-1293.36,0.00017808,3]
[402386116,1768669893342,-1411.66,0.00017808,3]
[402386118,1768669893352,-1180.34,0.00017808,3]
[402386120,1768669893362,-500.0,0.00017808,3]
[402386122,1768669893371,-500.0,0.00017808,3]
[402386124,1768669893379,-1399.24,0.00017808,3]
[402386126,1768669893389,-575.62,0.00017808,3]
[402386128,1768669893398,-500.0,0.00017808,3]
[402386130,1768669893407,-500.0,0.00017808,3]
[402386132,1768669893417,-1032.1,0.00017808,3]
[402386134,1768669893426,-609.57,0.00017808,3]
[402386136,1768669893435,-500.0,0.00017808,3]
[402386138,1768669893445,-1569.6,0.00017808,3]
[402386140,1768669893454,-500.0,0.00017808,3]
[402386142,1768669893463,-500.0,0.00017808,3]
[402386144,1768669893473,-1051.96,0.00017808,3]
[402386146,1768669893482,-500.0,0.00017808,3]
[402386148,1768669893491,-1321.15,0.00017808,3]
[402386150,1768669893501,-500.0,0.00017808,3]
[402386152,1768669893510,-500.0,0.00017808,3]
[402386154,1768669893519,-500.0,0.00017808,3]
[402386156,1768669893528,-545.77,0.00017808,3]
[402386158,1768669893538,-500.0,0.00017808,3]
[402386160,1768669893548,-500.0,0.00017808,3]
[402386162,1768669893557,-500.0,0.00017808,3]
[402386163,1768669893566,-500.0,0.00017808,3]
[402386165,1768669893580,-536.65897098,0.00017808,3]
[402386167,1768669893589,-500.0,0.00017808,3]
[402386169,1768669893598,-1628.67,0.00017808,3]
[402386171,1768669893607,-1173.22,0.00017808,3]
[402386173,1768669893618,-206.13170951,0.00017808,3]
[402386175,1768669893627,-500.0,0.00017808,3]
[402386177,1768669893638,-539.32,0.00017808,3]
[402386179,1768669893649,-1249.71,0.00017808,3]
[402386181,1768669893659,-500.0,0.00017808,3]
[402386183,1768669893669,-1452.79,0.00017808,3]
[402386185,1768669893679,-937.01,0.00017808,3]
[402386187,1768669893688,-500.0,0.00017808,3]
[402386189,1768669893698,-972.71,0.00017808,3]
[402386191,1768669893708,-739.58,0.00017808,3]
[402386193,1768669893717,-1972.54,0.00017808,3]
[402386195,1768669893727,-500.0,0.00017808,3]
[402386197,1768669893736,-849.49,0.00017808,3]
[402386199,1768669893746,-500.0,0.00017808,3]
[402386201,1768669893755,-500.0,0.00017808,3]
[402386203,1768669893766,-500.0,0.00017808,3]
[402386205,1768669893775,-500.0,0.00017808,3]
[402386207,1768669893786,-955.79,0.00017808,3]
[402386209,1768669893796,-849.77,0.00017808,3]
[402386211,1768669893805,-500.0,0.00017808,3]
[402386213,1768669893815,-500.0,0.00017808,3]
[402386215,1768669893825,-500.0,0.00017808,3]
[402386217,1768669893834,-2175.59,0.00017808,3]
[402386219,1768669893844,-2633.13,0.00017808,3]
[402386220,1768669893854,-500.0,0.00017808,2]
[402386222,1768669893864,-1897.0,0.00017811,2]
[402386224,1768669893874,-2487.15318209,0.00017837,2]
[402386226,1768669893883,-514.84070869,0.00017837,2]
[402386228,1768669893893,-34692.55458483,0.00017837,2]
[402386230,1768669893902,-298.82547295,0.00017842,32]
[402386232,1768669893911,-444.94858251,0.00017842,32]
[402386234,1768669893920,-601.4293559,0.00017877,12]
[402386236,1768669893930,-451.23480975,0.000179,2]
[402386238,1768669893939,-919.0,0.0001792,2]
[402386240,1768669893949,-208.2,0.00017933,2]
[402386242,1768669893958,-247.06521876,0.00017975,32]
[402386244,1768669893967,-1897.0,0.00017995,2]
[402386246,1768669893977,-517.8955448,0.00018,2]
[402386248,1768669893986,-152129.62492152,0.00018,2]
[402386250,1768669893995,-28166.53084422,0.00018,5]
[402386252,1768669894004,-20000.0,0.00018,2]
[402386254,1768669894014,-25774.7668619,0.00018005,2]
[402386255,1768669894025,-155.0,0.00018081,2]
[402386257,1768669894034,-500.0,0.00018082,3]
[402386259,1768669894044,-673.12713185,0.00018082,3]
[402386261,1768669894053,-500.0,0.00018082,3]
[402386263,1768669894062,-500.0,0.00018082,3]
[402386265,1768669894071,-500.0,0.00018082,3]
[402386267,1768669894081,-500.0,0.00018082,3]
[402386269,1768669894090,-500.0,0.00018082,3]
[402386271,1768669894100,-500.0,0.00018082,3]
[402386273,1768669894110,-500.0,0.00018082,3]
[402386275,1768669894119,-697.21,0.00018082,3]
[402386277,1768669894128,-500.0,0.00018082,3]
[402386279,1768669894138,-500.0,0.00018082,3]
[402386281,1768669894147,-1537.06,0.00018082,3]
[402386283,1768669894156,-500.0,0.00018082,3]
[402386285,1768669894166,-500.0,0.00018082,3]
[402386287,1768669894175,-500.0,0.00018082,3]
[402386289,1768669894184,-727.37,0.00018082,3]
[402386291,1768669894193,-512.66871378,0.00018082,3]
[402386293,1768669894202,-500.0,0.00018082,3]
[402386295,1768669894212,-500.0,0.00018082,3]
[402386297,1768669894221,-674.4,0.00018082,3]
[402386298,1768669894231,-1051.61,0.00018082,3]
[402386300,1768669894240,-500.0,0.00018082,3]
[402386302,1768669894249,-526.97,0.00018082,3]
[402386304,1768669894258,-500.0,0.00018082,3]
[402386306,1768669894267,-499.44798613,0.00018082,3]
[402386308,1768669894278,-500.0,0.00018082,3]
[402386310,1768669894287,-1003.82,0.00018082,3]
[402386312,1768669894296,-977.84,0.00018082,3]
[402386314,1768669894305,-562.12,0.00018082,3]
[402386316,1768669894314,-661.08,0.00018082,3]
[402386318,1768669894324,-500.0,0.00018082,3]
[402386320,1768669894333,-1342.63,0.00018082,3]
[402386322,1768669894342,-500.0,0.00018082,3]
[402386324,1768669894350,-546.74,0.00018082,3]
[402386326,1768669894360,-500.0,0.00018082,3]
[402386328,1768669894369,-500.0,0.00018082,3]
[402386330,1768669894379,-500.0,0.00018082,3]
[402386332,1768669894389,-500.0,0.00018082,3]
[402386334,1768669894398,-514.38,0.00018082,3]
[402386336,1768669894407,-500.0,0.00018082,3]
[402386337,1768669894416,-500.0,0.00018082,3]
[402386339,1768669894426,-613.18,0.00018082,3]
[402386341,1768669894435,-622.86303291,0.00018082,3]
[402386343,1768669894445,-500.0,0.00018082,3]
[402386345,1768669894455,-500.0,0.00018082,3]
[402386347,1768669894464,-500.0,0.00018082,3]
[402386349,1768669894474,-500.0,0.00018082,3]
[402386351,1768669894483,-1091.45,0.00018082,3]
[402386353,1768669894492,-500.0,0.00018082,3]
[402386355,1768669894501,-843.1,0.00018082,3]
[402386357,1768669894510,-500.0,0.00018082,3]
[402386359,1768669894520,-527.98947312,0.00018082,3]
[402386361,1768669894529,-500.0,0.00018082,3]
[402386363,1768669894539,-500.0,0.00018082,3]
[402386365,1768669894548,-822.64,0.00018082,3]
[402386367,1768669894557,-527.73,0.00018082,3]
[402386369,1768669894567,-891.16,0.00018082,3]
[402386370,1768669894581,-1723.32,0.00018082,3]
[402386372,1768669894590,-500.0,0.00018082,3]
[402386374,1768669894600,-500.0,0.00018082,3]
[402386376,1768669894609,-500.0,0.00018082,3]
[402386378,1768669894619,-500.0,0.00018082,3]
[402386380,1768669894629,-500.0,0.00018082,3]
[402386382,1768669894638,-891.17,0.00018082,3]
[402386384,1768669894648,-756.73,0.00018082,3]
[402386386,1768669894657,-1663.41,0.00018082,3]
[402386388,1768669894667,-500.0,0.00018082,3]
[402386390,1768669894676,-975.35,0.00018082,3]
[402386392,1768669894685,-500.0,0.00018082,3]
[402386394,1768669894694,-500.0,0.00018082,3]
[402386396,1768669894704,-569.01,0.00018082,3]
[402386398,1768669894713,-500.0,0.00018082,3]
[402386400,1768669894722,-770.5,0.00018082,3]
[402386401,1768669894732,-500.0,0.00018082,3]
[402386403,1768669894741,-1208.54,0.00018082,3]
[402386405,1768669894752,-500.0,0.00018082,3]
[402386407,1768669894761,-632.16,0.00018082,3]
[402386409,1768669894770,-1521.64,0.00018082,3]
[402386411,1768669894780,-500.0,0.00018082,3]
[402386413,1768669894789,-500.0,0.00018082,3]
[402386415,1768669894799,-548.34,0.00018082,3]
[402386417,1768669894809,-1008.77,0.00018082,3]
[402386419,1768669894818,-500.0,0.00018082,3]
[402386420,1768669894826,-2004.45,0.00018082,3]
[402386421,1768669894835,-945.54,0.00018082,3]
[402386422,1768669894844,-601.7,0.00018082,3]
[402386423,1768669894854,-574.65,0.00018082,3]
[402386424,1768669894863,-1355.06,0.00018082,3]
[402386425,1768669894872,-600.66,0.00018082,3]
[402386426,1768669894880,-963.02,0.00018082,3]
[402386427,1768669894889,-619.79,0.00018082,3]
[402386428,1768669894898,-500.0,0.00018082,3]
[402386429,1768669894907,-1122.16,0.00018082,3]
[402386430,1768669894916,-348.04789676,0.00018082,3]
[402386431,1768669894925,-500.0,0.00018082,3]
[402386432,1768669894934,-500.0,0.00018082,3]
[402386433,1768669894943,-520.55,0.00018082,3]
[402386434,1768669894952,-980.93,0.00018082,3]
[402386435,1768669894961,-1043.62,0.00018082,3]
[402386436,1768669894970,-513.25,0.00018082,3]
[402386437,1768669894978,-914.72,0.00018082,3]
[402386438,1768669894987,-997.98,0.00018082,3]
[402386439,1768669894996,-500.0,0.00018082,3]
[402386440,1768669895005,-205.70334836,0.00018082,3]
[402386449,1768669895183,-1293.8,0.00018082,3]
[402386451,1768669895195,-500.0,0.00018082,3]
[402386453,1768669895204,-500.0,0.00018082,3]
[402386455,1768669895213,-1826.55,0.00018082,3]
[402386457,1768669895223,-649.67,0.00018082,3]
[402386459,1768669895232,-500.0,0.00018082,3]
[402386461,1768669895241,-500.0,0.00018082,3]
[402386463,1768669895251,-500.0,0.00018082,3]
[402386465,1768669895261,-972.93,0.00018082,3]
[402386467,1768669895271,-500.0,0.00018082,3]
[402386469,1768669895282,-500.0,0.00018082,3]
[402386472,1768669895291,-500.0,0.00018082,3]
[402386473,1768669895300,-887.91,0.00018082,3]
[402386476,1768669895310,-873.02,0.00018082,3]
[402386477,1768669895320,-500.0,0.00018082,2]
[402386480,1768669895330,-500.0,0.00018082,3]
[402386481,1768669895341,-1225.73,0.00018082,3]
[402386483,1768669895350,-500.0,0.00018082,3]
[402386486,1768669895360,-1346.87,0.00018082,3]
[402386488,1768669895369,-540.9,0.00018082,3]
[402386489,1768669895379,-1000.0,0.00018082,2]
[402386491,1768669895389,-853.74,0.00018082,3]
[402386494,1768669895398,-637.34,0.00018082,3]
[402386496,1768669895408,-500.0,0.00018082,3]
[402386498,1768669895417,-500.0,0.00018082,3]
[402386500,1768669895427,-500.0,0.00018082,3]
[402386502,1768669895436,-500.0,0.00018082,3]
[402386504,1768669895446,-500.0,0.00018082,3]
[402386506,1768669895455,-543.12,0.00018082,3]
[402386508,1768669895464,-874.93,0.00018082,3]
[402386510,1768669895473,-1510.5,0.00018082,3]
[402386512,1768669895482,-500.0,0.00018082,3]
[402386514,1768669895491,-510.23,0.00018082,3]
[402386516,1768669895500,-1075.6,0.00018082,3]
[402386518,1768669895509,-500.0,0.00018082,3]
[402386520,1768669895518,-500.0,0.00018082,3]
[402386521,1768669895528,-500.0,0.00018082,3]
[402386523,1768669895537,-500.0,0.00018082,3]
[402386525,1768669895547,-1554.86,0.00018082,3]
[402386527,1768669895556,-500.0,0.00018082,3]
[402386529,1768669895565,-500.0,0.00018082,3]
[402386531,1768669895579,-500.0,0.00018082,3]
[402386533,1768669895588,-516.86,0.00018082,3]
[402386535,1768669895598,-748.62,0.00018082,3]
[402386537,1768669895607,-1203.14,0.00018082,3]
[402386539,1768669895617,-500.0,0.00018082,3]
[402386541,1768669895627,-500.0,0.00018082,3]
[402386543,1768669895637,-500.0,0.00018082,3]
[402386545,1768669895648,-940.17,0.00018082,3]
[402386547,1768669895657,-907.89,0.00018082,3]
[402386549,1768669895667,-500.0,0.00018082,3]
[402386551,1768669895676,-500.0,0.00018082,3]
[402386553,1768669895685,-500.0,0.00018082,3]
[402386555,1768669895695,-500.0,0.00018082,3]
[402386557,1768669895704,-1259.96,0.00018082,3]
[402386559,1768669895714,-962.36,0.00018082,3]
[402386561,1768669895723,-500.0,0.00018082,3]
[402386563,1768669895733,-606.69,0.00018082,3]
[402386565,1768669895742,-500.0,0.00018082,3]
[402386567,1768669895751,-500.0,0.00018082,3]
[402386569,1768669895761,-1903.61,0.00018082,3]
[402386571,1768669895770,-557.15103403,0.00018082,3]
[402386573,1768669895780,-500.0,0.00018082,3]
[402386575,1768669895790,-500.0,0.00018082,3]
[402386577,1768669895801,-500.0,0.00018082,3]
[402386579,1768669895810,-1200.0,0.00018082,2]
[402386581,1768669895820,-500.0,0.00018082,3]
[402386583,1768669895830,-500.0,0.00018082,3]
[402386585,1768669895839,-635.32816024,0.00018082,3]
[402386587,1768669895848,-1317.86,0.00018082,3]
[402386589,1768669895858,-500.0,0.00018082,3]
[402386591,1768669895867,-500.0,0.00018082,3]
[402386593,1768669895876,-500.0,0.00018082,3]
[402386595,1768669895885,-500.0,0.00018082,3]
[402386597,1768669895895,-500.0,0.00018082,3]
[402386599,1768669895904,-1739.91,0.00018082,3]
[402386601,1768669895913,-1530.43,0.00018082,3]
[402386602,1768669895922,-719.6,0.00018082,3]
[402386604,1768669895932,-813.96,0.00018082,3]
[402386606,1768669895941,-635.48793387,0.00018082,3]
[402386608,1768669895951,-745.72,0.00018082,3]
[402386610,1768669895960,-500.0,0.00018082,3]
[402386612,1768669895969,-676.17,0.00018082,3]
[402386614,1768669895979,-500.0,0.00018082,3]
[402386616,1768669895988,-635.29,0.00018082,3]
[402386618,1768669895998,-500.0,0.00018082,3]
[402386620,1768669896009,-729.75,0.00018082,3]
[402386622,1768669896018,-500.0,0.00018082,3]
[402386624,1768669896028,-530.32,0.00018082,3]
[402386626,1768669896038,-500.0,0.00018082,3]
[402386628,1768669896046,-500.0,0.00018082,3]
[402386629,1768669896056,-500.0,0.00018082,3]
[402386631,1768669896065,-806.08,0.00018082,3]
[402386633,1768669896074,-500.0,0.00018082,3]
[402386635,1768669896083,-597.8010965,0.00018082,3]
[402386637,1768669896093,-500.0,0.00018082,3]
[402386639,1768669896102,-500.0,0.00018082,3]
[402386641,1768669896112,-500.0,0.00018082,3]
[402386643,1768669896121,-500.0,0.00018082,3]
[402386645,1768669896131,-500.0,0.00018082,3]
[402386647,1768669896139,-500.0,0.00018082,3]
[402386649,1768669896148,-500.0,0.00018082,3]
[402386651,1768669896158,-775.08,0.00018082,3]
[402386653,1768669896167,-1108.08,0.00018082,3]
[402386655,1768669896177,-1138.7,0.00018082,3]
[402386657,1768669896186,-342.33666613,0.00018082,3]
[402386658,1768669896195,-1823.52,0.00018082,3]
[402386660,1768669896204,-500.0,0.00018082,3]
[402386662,1768669896213,-500.0,0.00018082,3]
[402386664,1768669896223,-834.18,0.00018082,3]
[402386666,1768669896232,-500.0,0.00018082,3]
[402386668,1768669896241,-500.0,0.00018082,3]
[402386670,1768669896250,-500.0,0.00018082,3]
[402386672,1768669896259,-838.02,0.00018082,3]
[402386674,1768669896268,-639.48,0.00018082,3]
[402386676,1768669896278,-995.33,0.00018082,3]
[402386678,1768669896288,-500.0,0.00018082,3]
[402386680,1768669896298,-500.0,0.00018082,3]
[402386682,1768669896307,-500.0,0.00018082,3]
[402386684,1768669896316,-500.0,0.00018082,3]
[402386686,1768669896325,-175.73098182,0.00018082,3]
[402386688,1768669896334,-938.53,0.00018082,3]
[402386690,1768669896343,-534.26411861,0.00018082,3]
[402386692,1768669896352,-500.0,0.00018082,3]
[402386694,1768669896362,-1195.06,0.00018082,3]
[402386696,1768669896371,-500.0,0.00018082,3]
[402386698,1768669896380,-500.0,0.00018082,3]
[402386700,1768669896390,-1163.03,0.00018082,3]
[402386701,1768669896399,-664.56,0.00018082,3]
[402386703,1768669896410,-539.14,0.00018082,3]
[402386705,1768669896419,-826.62,0.00018082,3]
[402386707,1768669896429,-1311.5,0.00018082,3]
[402386709,1768669896438,-500.0,0.00018082,3]
[402386711,1768669896448,-526.93,0.00018082,3]
[402386713,1768669896457,-826.22,0.00018082,3]
[402386715,1768669896466,-500.0,0.00018082,3]
[402386717,1768669896476,-592.71890736,0.00018082,3]
[402386718,1768669896486,-665.83,0.00018082,3]
[402386720,1768669896495,-1437.78,0.00018082,3]
[402386722,1768669896504,-911.88,0.00018082,3]
[402386724,1768669896514,-744.04,0.00018082,3]
[402386726,1768669896523,-500.0,0.00018082,3]
[402386728,1768669896533,-760.56,0.00018082,3]
[402386730,1768669896542,-1617.66,0.00018082,3]
[402386732,1768669896552,-500.0,0.00018082,3]
[402386734,1768669896562,-989.16,0.00018082,3]
[402386736,1768669896571,-548.8,0.00018082,3]
[402386738,1768669896583,-1392.58,0.00018082,3]
[402386740,1768669896593,-500.0,0.00018082,3]
[402386742,1768669896602,-500.0,0.00018082,3]
[402386744,1768669896613,-500.0,0.00018082,3]
[402386746,1768669896622,-1290.77,0.00018082,3]
[402386748,1768669896631,-500.0,0.00018082,3]
[402386749,1768669896640,-1139.26,0.00018082,3]
[402386751,1768669896649,-500.0,0.00018082,3]
[402386753,1768669896659,-563.28,0.00018082,3]
[402386755,1768669896668,-1235.64,0.00018082,3]
[402386757,1768669896677,-1363.63,0.00018082,3]
[402386759,1768669896686,-500.0,0.00018082,3]
[402386761,1768669896695,-500.0,0.00018082,3]
[402386763,1768669896704,-584.78,0.00018082,3]
[402386765,1768669896713,-591.12,0.00018082,3]
[402386766,1768669896723,-328.66179956,0.00018082,3]
[402386769,1768669896733,-500.0,0.00018082,3]
[402386770,1768669896743,-500.0,0.00018082,3]
[402386772,1768669896753,-500.0,0.00018082,3]
[402386774,1768669896763,-500.0,0.00018082,3]
[402386776,1768669896773,-500.0,0.00018082,3]
[402386778,1768669896784,-500.0,0.00018082,3]
[402386780,1768669896793,-500.0,0.00018082,3]
[402386782,1768669896802,-659.9,0.00018082,3]
[402386784,1768669896812,-562.53,0.00018082,3]
[402386786,1768669896821,-1216.62,0.00018082,3]
[402386788,1768669896831,-1459.54,0.00018082,3]
[402386790,1768669896841,-1408.31,0.00018082,3]
[402386792,1768669896851,-514.23188033,0.00018082,3]
[402386794,1768669896861,-1004.35,0.00018082,3]
[402386796,1768669896871,-2141.92,0.00018082,3]
[402386798,1768669896880,-500.0,0.00018082,3]
[402386800,1768669896889,-500.0,0.00018082,3]
[402386802,1768669896898,-1392.79,0.00018082,3]
[402386804,1768669896908,-500.0,0.00018082,3]
[402386806,1768669896917,-1651.69,0.00018082,3]
[402386807,1768669896926,-500.0,0.00018082,3]
[402386809,1768669896935,-500.0,0.00018082,3]
[402386811,1768669896945,-500.0,0.00018082,3]
[402386813,1768669896956,-500.0,0.00018082,3]
[402386815,1768669896965,-1022.52,0.00018082,3]
[402386817,1768669896975,-890.63,0.00018082,3]
[402386819,1768669896985,-500.0,0.00018082,3]
[402386821,1768669896994,-524.68,0.00018082,3]
[402386823,1768669897003,-525.47,0.00018082,3]
[402386825,1768669897014,-500.0,0.00018082,3]
[402386827,1768669897024,-1952.81,0.00018082,3]
[402386829,1768669897034,-500.0,0.00018082,3]
[402386831,1768669897044,-702.75,0.00018082,3]
[402386833,1768669897053,-500.0,0.00018082,3]
[402386835,1768669897062,-1977.43,0.00018082,3]
[402386836,1768669897071,-633.32,0.00018082,3]
[402386838,1768669897081,-500.0,0.00018082,3]
[402386840,1768669897090,-500.0,0.00018082,3]
[402386842,1768669897099,-500.0,0.00018082,3]
[402386844,1768669897109,-769.6,0.00018082,3]
[402386846,1768669897118,-500.0,0.00018082,3]
[402386848,1768669897127,-500.0,0.00018082,3]
[402386850,1768669897137,-500.0,0.00018082,3]
[402386852,1768669897147,-500.0,0.00018082,3]
[402386854,1768669897156,-500.0,0.00018082,3]
[402386856,1768669897164,-808.67,0.00018082,3]
[402386857,1768669897173,-505.87,0.00018082,3]
[402386859,1768669897182,-496.95581154,0.00018082,3]
[402386861,1768669897192,-1351.71,0.00018082,3]
[402386863,1768669897200,-500.0,0.00018082,3]